fUST/lending_fUST_20240123
["ID","MTS","AMOUNT","RATE_DAILY","PERIOD"]
[312535148,1705947593546,-1289.28,0.00046849,31]
[312535149,1705947593577,-500.0,0.00046849,31]
[312535150,1705947593608,-1337.29,0.00046849,31]
[312535151,1705947593640,-1443.88,0.00046849,31]
[312535152,1705947593766,-518.25,0.00046849,31]
[312535153,1705947593799,-1207.87921208,0.00046947,30]
[312535154,1705947593832,-150.0,0.00047,30]
[312535155,1705947593863,-1000.0,0.00047,47]
[312535156,1705947593893,-10000.05300701,0.00047,30]
[312535157,1705947593924,-567.11,0.00047123,31]
[312535158,1705947593956,-1126.09,0.00047123,31]
[312535159,1705947593987,-1014.23,0.00047123,31]
[312535160,1705947594018,-515.2,0.00047123,31]
[312535161,1705947594049,-500.0,0.00047123,31]
[312535162,1705947594079,-609.45743789,0.00047123,31]
[312535163,1705947594111,-679.61,0.00047123,31]
[312535164,1705947594146,-801.83,0.00047123,31]
[312535165,1705947594178,-1114.81,0.00047123,31]
[312535166,1705947594209,-529.18,0.00047123,31]
[312535167,1705947594238,-768.35,0.00047123,31]
[312535168,1705947594268,-1774.13,0.00047123,31]
[312535169,1705947594297,-604.97,0.00047123,31]
[312535170,1705947594330,-873.08,0.00047123,31]
[312535171,1705947594360,-1700.64,0.00047123,31]
[312535172,1705947594391,-1817.75,0.00047123,31]
[312535173,1705947594422,-676.26,0.00047123,31]
[312535174,1705947594452,-640.07,0.00047123,31]
[312535175,1705947594483,-552.87,0.00047123,31]
[312535176,1705947594513,-949.36,0.00047123,31]
[312535177,1705947594544,-1114.79,0.00047123,31]
[312535178,1705947594574,-1340.33,0.00047123,31]
[312535179,1705947594603,-1551.85,0.00047123,31]
[312535180,1705947594633,-1962.09,0.00047123,31]
[312535181,1705947594664,-1825.15,0.00047123,31]
[312535182,1705947594695,-2171.83,0.00047123,31]
[312535183,1705947594726,-1619.98,0.00047123,31]
[312535184,1705947594754,-741.59,0.00047123,31]
[312535185,1705947594784,-556.47,0.00047123,31]
[312535186,1705947594816,-1775.47,0.00047123,31]
[312535187,1705947594852,-564.89,0.00047123,31]
[312535188,1705947594885,-1289.28,0.00047123,31]
[312535189,1705947594917,-640.2347969,0.00047123,31]
[312535190,1705947594948,-1337.29,0.00047123,31]
[312535191,1705947594979,-1443.88,0.00047123,31]
[312535192,1705947595010,-150.0,0.000472,30]
[312535193,1705947595040,-567.16665867,0.00047397,31]
[312535194,1705947595071,-1126.1499045,0.00047397,31]
[312535195,1705947595103,-1014.23902778,0.00047397,31]
[312535196,1705947595135,-515.43785732,0.00047397,31]
[312535197,1705947595166,-437.4661791,0.00047397,31]
[312535198,1705947595198,-679.61725561,0.00047397,31]
[312535199,1705947595308,-801.88,0.00047397,31]
[312535200,1705947595345,-1115.04241026,0.00047397,31]
[312535201,1705947595376,-529.27504985,0.00047397,31]
[312535202,1705947595408,-768.5459079,0.00047397,31]
[312535203,1705947595440,-1774.36751767,0.00047397,31]
[312535204,1705947595472,-605.03318045,0.00047397,31]
[312535205,1705947595503,-873.18172778,0.00047397,31]
[312535206,1705947595535,-1700.7242058,0.00047397,31]
[312535207,1705947595566,-1817.86562542,0.00047397,31]
[312535208,1705947595598,-676.40837104,0.00047397,31]
[312535209,1705947595630,-640.19337823,0.00047397,31]
[312535210,1705947595661,-553.07788804,0.00047397,31]
[312535211,1705947595693,-949.56383507,0.00047397,31]
[312535212,1705947595724,-1114.86722843,0.00047397,31]
[312535213,1705947595755,-1340.5168416,0.00047397,31]
[312535214,1705947595788,-1551.92852948,0.00047397,31]
[312535215,1705947595821,-1962.28663172,0.00047397,31]
[312535216,1705947595855,-1825.37682666,0.00047397,31]
[312535217,1705947595885,-2171.94908607,0.00047397,31]
[312535218,1705947595918,-1620.18455794,0.00047397,31]
[312535219,1705947595951,-741.59409892,0.00047397,31]
[312535220,1705947595984,-556.68749083,0.00047397,31]
[312535221,1705947596015,-1775.66444023,0.00047397,31]
[312535222,1705947596054,-564.98515695,0.00047397,31]
[312535223,1705947596113,-1289.4424347,0.00047397,31]
[312535224,1705947596166,-1337.33792233,0.00047397,31]
[312535225,1705947596216,-1444.06843584,0.00047397,31]
[312535226,1705947596266,-150.0,0.000474,30]
[312535227,1705947596320,-260.0,0.000474,60]
[312535228,1705947596365,-150.0,0.000476,30]
[312535229,1705947596411,-150.0,0.000478,30]
[312535230,1705947596453,-150.0,0.00048,30]
[312535231,1705947596496,-50000.0,0.00048,90]
[312535232,1705947596538,-150.0,0.000482,30]
[312535233,1705947596584,-150.0,0.000484,30]
[312535234,1705947596628,-150.0,0.000486,30]
[312535235,1705947596669,-150.0,0.000488,30]
[312535236,1705947596711,-150.0,0.00049,30]
[312535237,1705947596747,-150.0,0.000492,30]
[312535238,1705947596778,-150.0,0.000494,30]
[312535239,1705947596808,-150.0,0.000496,30]
[312535240,1705947596839,-153.47988807,0.000498,30]
[312535241,1705947596871,-574.33724927,0.000499,120]
[312535242,1705947596902,-750.0,0.00049999,120]
[312535243,1705947596932,-14897.51825862,0.0005,30]
[312535244,1705947596963,-167918.93143078,0.0005,120]
[312535247,1705947638401,-436434.47971702,0.00046301,120]
[312535248,1705947638436,-832081.06856922,0.0005,120]
[312535249,1705947638467,-200.0,0.0005,120]
[312535250,1705947638497,-159.28004014,0.0005,120]
[312535251,1705947638531,-50000.0,0.00052,90]
[312535252,1705947638563,-3754.65281547,0.00053,120]
[312535253,1705947638593,-11954.28810026,0.000539,120]
[312535254,1705947638623,-109764.67221777,0.0005397,90]
[312535255,1705947638654,-44928.63101369,0.0005397,90]
[312535256,1705947638683,-1000.0,0.00054,120]
[312535257,1705947638715,-957.65318015,0.00054,120]
[312535258,1705947638744,-1000.0,0.00054499,120]
[312535259,1705947638774,-505.74433908,0.00054794,120]
[312535260,1705947639539,223.0,0.00044,90]
[312535261,1705947639879,223.0,0.0004411,90]
[312535262,1705947640198,223.0,0.00046027,90]
[312535263,1705947641237,223.0,0.00054773,120]
[312535264,1705947641551,223.0,0.00051551,120]
[312535265,1705947641731,170.0,0.00048,90]
[312535266,1705947641875,228.0,0.00048329,90]
[312535267,1705947642105,170.0,0.00050715,120]
[312535269,1705947650473,436434.47971702,0.00050715,120]
[312535355,1705948149753,151.50000152,5.911e-05,2]
[312535360,1705948208345,684.20206565,5.911e-05,2]
[312535361,1705948210835,3218.21657637,5.911e-05,2]
[312535362,1705948211521,154.98450155,5.911e-05,2]
[312535363,1705948212364,244.29662329,5.911e-05,2]
[312535364,1705948213413,1109.71485946,5.911e-05,2]
[312535365,1705948213849,154.98450155,5.32e-05,2]
[312535366,1705948216023,154.98450155,5.911e-05,2]
[312535367,1705948223538,155.23493854,5.911e-05,2]
[312535368,1705948226355,684.20206565,5.911e-05,2]
[312535369,1705948226828,3218.21657637,5.911e-05,2]
[312535370,1705948227855,154.98450155,5.32e-05,2]
[312535371,1705948230032,154.98450155,5.911e-05,2]
[312535372,1705948230375,321.59875632,5.911e-05,2]
[312535382,1705948231408,1109.71485946,5.911e-05,2]
[312535413,1705948235000,-167.00483785,0.00013654,2]
[312535414,1705948235010,-2276.90256456,0.00013655,2]
[312535415,1705948235022,-1469.15303456,0.00013655,2]
[312535416,1705948235032,-1486.37013603,0.00013656,2]
[312535482,1705948238901,-1626.93440702,0.00013654,2]
[312535483,1705948238921,-20059.21157048,0.00013654,2]
[312535484,1705948238931,-15220.19994985,0.00013654,2]
[312535485,1705948238940,-23413.62986397,0.00013656,2]
[312535486,1705948238949,-1468.66343637,0.00014036,2]
[312535487,1705948238960,-616.7500659,0.00014555,2]
[312535488,1705948238969,-155.58154405,0.00014556,2]
[312535489,1705948238978,-3485.76836938,0.00014651,2]
[312535490,1705948238987,-154.98450155,0.00014652,2]
[312535491,1705948238996,-178.76422807,0.00014652,2]
[312535492,1705948239005,-301.93072688,0.00014652,2]
[312535493,1705948239015,-5078.73775809,0.00014652,2]
[312535494,1705948239024,-213.43652609,0.00014653,2]
[312535495,1705948239033,-3973.85906822,0.00014653,2]
[312535496,1705948239042,-19867.27856324,0.00014653,2]
[312535497,1705948239051,-977.99536434,0.00014654,2]
[312535498,1705948239061,-1242.55121556,0.00014654,2]
[312535499,1705948239070,-1579.39395429,0.00014654,2]
[312535500,1705948239079,-711.772838,0.00014654,2]
[312535501,1705948239090,-18904.87156494,0.00014654,2]
[312535502,1705948239100,-8761.98403332,0.00014655,2]
[312535503,1705948239109,-166.67526662,0.00014655,2]
[312535504,1705948239118,-452.74208012,0.00014655,2]
[312535505,1705948239128,-1253.41868812,0.00014655,2]
[312535506,1705948239137,-154.98450155,0.00014655,2]
[312535507,1705948239147,-81207.38465248,0.00014655,2]
[312535508,1705948239156,-154.98450155,0.00014656,2]
[312535509,1705948239166,-178.91876323,0.00014656,2]
[312535510,1705948239176,-1293.76681809,0.00014656,2]
[312535511,1705948239186,-4813.95392208,0.00014657,2]
[312535512,1705948239195,-903.63325516,0.00014657,2]
[312535513,1705948239205,-7960.18375069,0.00014658,2]
[312535514,1705948239214,-470.67463112,0.00014659,2]
[312535515,1705948239224,-236.219976,0.00014664,2]
[312535516,1705948239234,-154.98450155,0.00015,2]
[312535517,1705948239243,-687.96014716,0.00015,2]
[312535518,1705948239253,-1266.7890629,0.00015,2]
[312535519,1705948239262,-328.29572382,0.00015659,2]
[312535520,1705948239272,-21696.9088825,0.00015664,2]
[312535521,1705948239282,-266.3742192,0.00015668,2]
[312535522,1705948239291,-272.55691777,0.000165,2]
[312535523,1705948239300,-834.40610543,0.00016673,2]
[312535524,1705948239311,-874.37604694,0.00017235,2]
[312535525,1705948239321,-10537.96841435,0.00017898,2]
[312535526,1705948239334,-5000.0,0.00018153,2]
[312535527,1705948239342,-200.0,0.00018332,2]
[312535528,1705948239351,-1439.19025016,0.00018524,2]
[312535529,1705948239360,-175.22193864,0.00018524,2]
[312535530,1705948239370,-211.53795191,0.00018525,2]
[312535531,1705948239380,-500.0,0.00018714,2]
[312535532,1705948239389,-309.81413939,0.00018714,2]
[312535533,1705948239398,-309.81413939,0.00018714,2]
[312535534,1705948239408,-876.39189184,0.00018714,2]
[312535535,1705948239417,-170.92363548,0.00018714,2]
[312535536,1705948239427,-15915.17297811,0.00018714,2]
[312535537,1705948239435,-199.25222227,0.00018714,2]
[312535538,1705948239445,-161.02224773,0.00018714,2]
[312535539,1705948239454,-588.35431441,0.00018714,2]
[312535540,1705948239463,-323.59110907,0.00018714,2]
[312535541,1705948239472,-309.73681733,0.00018714,2]
[312535542,1705948239481,-1696.62198985,0.00018714,2]
[312535543,1705948239491,-265.48221302,0.00018714,2]
[312535544,1705948239500,-1993.49479484,0.00018714,2]
[312535545,1705948239509,-1582.38308236,0.00019,2]
[312535546,1705948239518,-163.02214,0.00019178,2]
[312535547,1705948239527,-165.847952,0.00019178,2]
[312535548,1705948239535,-155.581544,0.00019468,2]
[312535549,1705948239545,-323.13003236,0.0002,2]
[312535550,1705948239554,-154.98450155,0.0002,2]
[312535551,1705948239563,-154.98450155,0.0002,2]
[312535552,1705948239572,-154.98450155,0.0002,2]
[312535553,1705948239581,-678.6288756,0.0002,2]
[312535554,1705948239591,-154.98450155,0.0002,2]
[312535555,1705948239600,-850.30063575,0.0002,2]
[312535556,1705948239610,-200.0,0.0002,2]
[312535557,1705948239620,-1197.97622761,0.0002,2]
[312535558,1705948239630,-667.24083957,0.0002,2]
[312535559,1705948239640,-301.01534561,0.00020128,2]
[312535560,1705948239649,-280.0,0.00020166,2]
[312535561,1705948239659,-166.666666,0.00021918,2]
[312535562,1705948239668,-293.4468762,0.00022,4]
[312535563,1705948239679,-425.98515357,0.00022,2]
[312535564,1705948239690,-302.0,0.00022182,7]
[312535565,1705948239699,-166.666666,0.00022431,2]
[312535566,1705948239709,-166.666666,0.00022944,2]
[312535567,1705948239719,-1571.50470749,0.00023,2]
[312535568,1705948239728,-166.666666,0.00023456,2]
[312535569,1705948239738,-166.666666,0.00023969,2]
[312535570,1705948239748,-7704.47868303,0.00024,2]
[312535571,1705948239757,-155.581544,0.0002438,2]
[312535572,1705948239768,-166.666666,0.00024482,2]
[312535573,1705948239777,-6766.03806076,0.00024557,2]
[312535574,1705948239786,-555.15795489,0.00024656,2]
[312535575,1705948239797,-7448.5280568,0.00024656,2]
[312535576,1705948239807,-150.28,0.00024656,2]
[312535577,1705948239817,-261.05411193,0.00024657,2]
[312535578,1705948239827,-341.151322,0.00024658,2]
[312535579,1705948239836,-380.0,0.00024658,2]
[312535580,1705948239845,-166.568636,0.00024658,2]
[312535581,1705948239855,-824.33300328,0.000247,2]
[312535582,1705948239864,-50000.0,0.00024818,2]
[312535583,1705948239873,-4723.24260277,0.00025,2]
[312535584,1705948239882,-7381.29040931,0.00025,2]
[312535585,1705948239892,-154.98450155,0.00025,2]
[312535586,1705948239901,-154.98450155,0.00025,2]
[312535587,1705948239911,-154.98450155,0.00025,2]
[312535588,1705948239921,-679.71377977,0.00025,2]
[312535589,1705948239930,-341.151322,0.0002544,2]
[312535590,1705948239939,-200.0,0.00025479,2]
[312535591,1705948239948,-32104.45544456,0.000259,2]
[312535592,1705948239958,-193.33123141,0.00025967,2]
[312535594,1705948239968,-155.25305817,0.00025968,2]
[312535596,1705948239977,-1000.0,0.00025996,2]
[312535598,1705948239986,-15434.44305414,0.00025996,2]
[312535600,1705948239995,-2102.89933599,0.00025998,2]
[312535602,1705948240004,-1767.61536904,0.00025998,2]
[312535604,1705948240014,-148612.35004414,0.00026,2]
[312535606,1705948240022,-166.568636,0.00026027,2]
[312535608,1705948240031,-341.151322,0.00026223,2]
[312535609,1705948240040,-290.32272867,0.00027,2]
[312535611,1705948240049,-341.151322,0.00027006,2]
[312535613,1705948240058,-500.0,0.00027397,2]
[312535615,1705948240068,-155.0,0.00027397,2]
[312535616,1705948240077,-166.568636,0.00027397,2]
[312535617,1705948240086,-500.0,0.00027534,2]
[312535618,1705948240095,-648.03043698,0.00027651,2]
[312535619,1705948240104,-500.0,0.00027671,2]
[312535620,1705948240113,-341.151322,0.00027789,2]
[312535621,1705948240122,-670.58761481,0.00027798,2]
[312535622,1705948240131,-365.05011169,0.00027799,2]
[312535623,1705948240140,-3812.36324612,0.000278,2]
[312535625,1705948240149,-500.0,0.00027808,2]
[312535626,1705948240159,-150.89807138,0.00027841,2]
[312535628,1705948240169,-20757.89200492,0.00027854,2]
[312535630,1705948240178,-23485.39415844,0.00027855,2]
[312535632,1705948240187,-11688.44224787,0.00027898,2]
[312535634,1705948240197,-295.56054788,0.00027899,2]
[312535636,1705948240207,-155.90404037,0.00027899,2]
[312535637,1705948240216,-174.27252801,0.00027899,2]
[312535638,1705948240226,-500.0,0.00027899,4]
[312535639,1705948240235,-460.37043906,0.00027899,4]
[312535640,1705948240244,-500.0,0.00027899,4]
[312535641,1705948240253,-565.41648212,0.00027899,4]
[312535642,1705948240262,-500.0,0.00027899,4]
[312535643,1705948240271,-500.0,0.00027899,4]
[312535644,1705948240281,-500.0,0.00027899,4]
[312535646,1705948240290,-500.0,0.00027899,4]
[312535648,1705948240299,-500.0,0.00027899,4]
[312535650,1705948240308,-500.0,0.00027899,4]
[312535652,1705948240320,-500.0,0.00027899,4]
[312535654,1705948240329,-500.0,0.00027899,4]
[312535656,1705948240338,-500.0,0.00027899,4]
[312535658,1705948240347,-500.0,0.00027899,4]
[312535660,1705948240356,-241.55453704,0.00027899,4]
[312535662,1705948240365,-500.0,0.00027899,4]
[312535664,1705948240375,-500.0,0.00027899,4]
[312535666,1705948240383,-500.0,0.00027899,4]
[312535668,1705948240392,-500.0,0.00027899,4]
[312535670,1705948240402,-415.24619212,0.00027899,4]
[312535672,1705948240411,-460.20008453,0.00027899,4]
[312535673,1705948240420,-370.77726851,0.00027899,4]
[312535674,1705948240429,-500.0,0.00027899,2]
[312535675,1705948240438,-500.0,0.00027899,2]
[312535676,1705948240448,-500.0,0.00027899,2]
[312535677,1705948240459,-500.0,0.00027899,2]
[312535678,1705948240467,-500.0,0.00027899,2]
[312535679,1705948240476,-500.0,0.00027899,2]
[312535680,1705948240485,-500.0,0.00027899,2]
[312535681,1705948240495,-500.0,0.00027899,2]
[312535682,1705948240504,-500.0,0.00027899,2]
[312535683,1705948240513,-500.0,0.00027899,2]
[312535684,1705948240522,-500.0,0.00027899,2]
[312535685,1705948240532,-500.0,0.00027899,2]
[312535686,1705948240541,-500.0,0.00027899,2]
[312535687,1705948240550,-500.0,0.00027899,2]
[312535688,1705948240559,-500.0,0.00027899,2]
[312535689,1705948240571,-500.0,0.00027899,2]
[312535690,1705948240580,-500.0,0.00027899,2]
[312535691,1705948240589,-500.0,0.00027899,2]
[312535692,1705948240598,-500.0,0.00027899,2]
[312535693,1705948240608,-500.0,0.00027899,2]
[312535694,1705948240618,-500.0,0.00027899,2]
[312535695,1705948240627,-500.0,0.00027899,2]
[312535696,1705948240636,-500.0,0.00027899,2]
[312535697,1705948240645,-500.0,0.00027899,2]
[312535698,1705948240654,-500.0,0.00027899,2]
[312535699,1705948240662,-600.0,0.00027899,2]
[312535700,1705948240671,-500.0,0.00027899,2]
[312535701,1705948240680,-500.0,0.00027899,2]
[312535702,1705948240689,-392.65016199,0.00027899,2]
[312535703,1705948240698,-500.0,0.00027899,2]
[312535704,1705948240710,-500.0,0.00027899,2]
[312535705,1705948240719,-556.95637268,0.00027899,2]
[312535706,1705948240728,-500.0,0.00027899,2]
[312535707,1705948240737,-500.0,0.00027899,2]
[312535708,1705948240746,-500.0,0.00027899,2]
[312535709,1705948240755,-500.0,0.00027899,2]
[312535710,1705948240764,-500.0,0.00027899,2]
[312535712,1705948240773,-500.0,0.00027899,2]
[312535714,1705948240782,-500.0,0.00027899,2]
[312535716,1705948240793,-500.0,0.00027899,2]
[312535718,1705948240802,-500.0,0.00027899,2]
[312535720,1705948240811,-500.0,0.00027899,2]
[312535722,1705948240820,-600.0,0.00027899,2]
[312535724,1705948240829,-500.0,0.00027899,2]
[312535726,1705948240838,-513.13435313,0.00027899,2]
[312535728,1705948240847,-500.0,0.00027899,2]
[312535730,1705948240857,-500.0,0.00027899,2]
[312535732,1705948240866,-356.60521467,0.00027899,2]
[312535734,1705948240875,-500.0,0.00027899,2]
[312535736,1705948240884,-500.0,0.00027899,2]
[312535738,1705948240894,-500.0,0.00027899,2]
[312535740,1705948240903,-1421.04149488,0.00027899,2]
[312535742,1705948240912,-500.0,0.00027899,2]
[312535744,1705948240921,-1421.04149488,0.00027899,2]
[312535746,1705948240930,-238.6230496,0.00027899,2]
[312535749,1705948240945,-58.84392683,0.00027899,2]
[312535751,1705948240954,-1421.04149488,0.00027899,2]
[312535753,1705948240964,-500.0,0.00027899,2]
[312535755,1705948240976,-1421.04149488,0.00027899,2]
[312535757,1705948240985,-500.0,0.00027899,2]
[312535759,1705948240994,-500.0,0.00027899,2]
[312535761,1705948241003,-500.0,0.00027899,2]
[312535763,1705948241012,-177.23460254,0.00027899,2]
[312535765,1705948241021,-500.0,0.00027899,2]
[312535767,1705948241031,-500.0,0.00027899,2]
[312535769,1705948241040,-1421.04149488,0.00027899,2]
[312535771,1705948241049,-500.0,0.00027899,2]
[312535773,1705948241058,-500.0,0.00027899,2]
[312535775,1705948241067,-400.0,0.00027899,2]
[312535777,1705948241076,-1303.64650887,0.00027899,2]
[312535779,1705948241088,-117.39498601,0.00027899,2]
[312535781,1705948241098,-500.0,0.00027899,2]
[312535783,1705948241107,-588.82501399,0.00027899,2]
[312535816,1705948241439,-712.41774421,0.00013655,2]
[312535842,1705948243046,-3581.79311233,0.00013655,2]
[312535843,1705948243058,-5114.10000102,0.00013655,2]
[312535844,1705948243847,154.98450155,5.32e-05,2]
[312535848,1705948246031,172.69560925,5.911e-05,2]
[312535849,1705948246330,684.20206565,5.911e-05,2]
[312535850,1705948246852,3218.21657637,5.911e-05,2]
[312535851,1705948247414,519.78310428,5.911e-05,2]
[312535852,1705948259849,154.98450155,5.32e-05,2]
[312535853,1705948262334,684.20206565,5.911e-05,2]
[312535854,1705948268948,3096.97810916,5.911e-05,2]
[312535855,1705948279856,262.15838048,5.32e-05,2]
[312535856,1705948286351,684.20206565,5.911e-05,2]
[312535857,1705948306342,204.12698787,5.911e-05,2]
[312535918,1705949235189,-156.02710907,6.203e-05,2]
[312535919,1705949235210,-3485.76836938,6.203e-05,2]
[312535920,1705949235230,-526.75292248,6.203e-05,2]
[312535921,1705949235253,-734.45159907,6.204e-05,2]
[312535924,1705949291308,6549.7263248,5.53e-05,2]
[312535925,1705949306327,-265.48221302,6.194e-05,2]
[312535926,1705949306348,-8761.98403332,6.195e-05,2]
[312535927,1705949306369,-21686.1459775,6.195e-05,2]
[312535928,1705949306389,-561.64006482,6.196e-05,2]
[312535929,1705949306411,-178.76422807,6.196e-05,2]
[312535930,1705949306431,-2103.40493137,6.196e-05,2]
[312535931,1705949306452,-4792.5785519,6.196e-05,2]
[312535932,1705949331866,-154.98450155,6.129e-05,2]
[312535933,1705949331890,-1110.01549845,6.13e-05,2]
[312535936,1705949355148,21696.9088825,5.161e-05,2]
[312535937,1705949361828,783.71511399,0.00029,30]
[312535943,1705949393620,236.219976,5.125e-05,2]
[312535985,1705949437074,-1696.62198985,6.114e-05,2]
[312535986,1705949437083,-3746.05559912,6.114e-05,2]
[312535988,1705949437093,-155.0,6.114e-05,2]
[312535990,1705949437103,-175.22193864,6.114e-05,2]
[312535992,1705949437112,-588.35431441,6.114e-05,2]
[312535994,1705949437121,-7294.46298739,6.114e-05,2]
[312535996,1705949437133,-2991.1895775,6.114e-05,2]
[312535998,1705949437145,-26679.94103916,6.114e-05,2]
[312536001,1705949437154,-2034.57165769,6.115e-05,2]
[312536002,1705949437164,-1439.19025016,6.115e-05,2]
[312536004,1705949437173,-19867.27856324,6.115e-05,2]
[312536006,1705949437182,-166.67526662,6.116e-05,2]
[312536008,1705949437192,-15220.19994985,6.116e-05,2]
[312536011,1705949437201,-129.95420704,6.116e-05,2]
[312536014,1705949437212,-297.7774907,6.116e-05,2]
[312536123,1705949438320,-189.01836816,6.116e-05,2]
[312536125,1705949438329,-10636.5880194,6.116e-05,2]
[312536127,1705949438340,-2400.53254359,6.116e-05,2]
[312536129,1705949438351,-682.70157131,6.116e-05,2]
[312536131,1705949438360,-161.02224773,6.116e-05,2]
[312536133,1705949438369,-781.24172592,6.116e-05,2]
[312536135,1705949438380,-461.30948964,6.116e-05,2]
[312536138,1705949438389,-538.69051036,6.117e-05,2]
[312536141,1705949438401,-439.30485398,6.117e-05,2]
[312536143,1705949438411,-3130.04768523,6.117e-05,2]
[312536145,1705949438420,-211.53795191,6.117e-05,2]
[312536147,1705949438430,-18904.87156494,6.117e-05,2]
[312536149,1705949438439,-81207.38465248,6.117e-05,2]
[312536151,1705949438448,-155.0,6.118e-05,2]
[312536153,1705949438457,-167.00483785,6.118e-05,2]
[312536155,1705949438466,-595.13721922,6.118e-05,2]
[312536158,1705949438476,-3973.85906822,6.118e-05,2]
[312536159,1705949438486,-680.10116762,6.118e-05,2]
[312536162,1705949438497,-1253.41868812,6.118e-05,2]
[312536163,1705949438506,-5078.73775809,6.118e-05,2]
[312536165,1705949438515,-4813.95392208,6.118e-05,2]
[312536167,1705949438525,-3485.76836938,6.118e-05,2]
[312536169,1705949438535,-2039.05381066,6.118e-05,2]
[312536170,1705949438546,-711.772838,6.119e-05,2]
[312536172,1705949438555,-178.91876323,6.119e-05,2]
[312536174,1705949438568,-294.88989743,6.119e-05,2]
[312536175,1705949438577,-261.13863683,6.119e-05,2]
[312536177,1705949438586,-452.74208012,6.119e-05,2]
[312536179,1705949438596,-452.74208012,6.119e-05,2]
[312536180,1705949438605,-20874.58230083,6.119e-05,2]
[312536181,1705949438614,-19701.14547142,6.119e-05,2]
[312536182,1705949438623,-452.74208012,6.119e-05,2]
[312536184,1705949438633,-561.64006482,6.12e-05,2]
[312536186,1705949438642,-265.48221302,6.12e-05,2]
[312536188,1705949438651,-155.0,6.12e-05,2]
[312536190,1705949438661,-329.53567279,6.12e-05,2]
[312536192,1705949438673,-555.36580163,6.12e-05,2]
[312536194,1705949438683,-155.0,6.12e-05,2]
[312536196,1705949438692,-178.76422807,6.12e-05,2]
[312536198,1705949438702,-1993.49479484,6.12e-05,2]
[312536200,1705949438713,-20902.38645894,6.12e-05,2]
[312536202,1705949438724,-237.63369757,6.12e-05,2]
[312536204,1705949438733,-154.98450155,6.121e-05,2]
[312536206,1705949438743,-301.93072688,6.121e-05,2]
[312536208,1705949438752,-155.0,6.121e-05,2]
[312536209,1705949438761,-1579.39395429,6.121e-05,2]
[312536210,1705949438771,-522.11697668,6.121e-05,2]
[312536211,1705949438781,-1603.2097273,6.121e-05,2]
[312536212,1705949438790,-21686.1459775,6.122e-05,2]
[312536217,1705949438919,-154.98450155,6.125e-05,2]
[312536219,1705949438929,-157.90819142,6.127e-05,2]
[312536221,1705949438938,-260.87494487,6.128e-05,2]
[312536223,1705949438947,-2103.40493137,6.192e-05,2]
[312536224,1705949438956,-330.86871849,6.192e-05,2]
[312536226,1705949438966,-309.69031278,6.192e-05,2]
[312536228,1705949438975,-309.90704028,6.192e-05,2]
[312536230,1705949438984,-7087.35255153,6.195e-05,2]
[312536232,1705949438994,-2073.9279871,6.196e-05,2]
[312536234,1705949439003,-470.67463112,6.196e-05,2]
[312536236,1705949439013,-98.00677423,6.204e-05,2]
[312536238,1705949439022,-15915.17297811,7e-05,2]
[312536240,1705949439031,-284.85781043,7.196e-05,2]
[312536242,1705949439041,-198.35421752,7.196e-05,2]
[312536244,1705949439050,-155.90404037,7.197e-05,2]
[312536246,1705949439063,-631.79888623,7.198e-05,2]
[312536247,1705949439072,-230.3584107,7.198e-05,2]
[312536249,1705949439082,-335.20763677,7.215e-05,2]
[312536250,1705949439091,-194.91380762,7.219e-05,2]
[312536251,1705949439101,-161.58015572,7.222e-05,2]
[312536252,1705949439110,-277.28029125,7.222e-05,2]
[312536253,1705949439120,-1640.08201467,7.227e-05,2]
[312536254,1705949439131,-266.3742192,7.231e-05,2]
[312536255,1705949439140,-24900.0,7.397e-05,2]
[312536256,1705949439149,-185.41016331,8.14e-05,2]
[312536257,1705949439159,-1468.66343637,0.0001,2]
[312536258,1705949439169,-154.98450155,0.0001,2]
[312536259,1705949439178,-154.98450155,0.0001,2]
[312536260,1705949439187,-213.43652609,0.0001,2]
[312536261,1705949439197,-7960.18375069,0.0001,2]
[312536262,1705949439206,-5000.0,0.0001,2]
[312536263,1705949439216,-215.4834977,0.00011222,2]
[312536264,1705949439226,-32104.45544456,0.00011267,2]